bitfinex/quotes_SOLUSD_20250617
["timestamp","ask_amount","ask_price","bid_price","bid_amount"]
[1750171728640,30.14911311,149.95,149.89,23.35045699]
[1750171728641,11.21514111,149.93,149.89,6.67155914]
[1750171728834,11.21514111,149.93,149.89,17.88670025]
[1750171729035,11.21514111,149.93,149.89,6.67155914]
[1750171729251,11.21514111,149.93,149.89,17.88670025]
[1750171729454,18.933972,149.95,149.89,17.88670025]
[1750171729655,0.28432314,149.93,149.89,17.88670025]
[1750171730455,0.28432314,149.93,149.9,11.21514111]
[1750171730656,29.86478997,149.95,149.9,11.21514111]
[1750171730969,43.63514111,149.96,149.92,11.21514111]
[1750171731154,6.42,149.96,149.93,11.21514111]
[1750171731470,55.86478997,149.99,149.94,11.21514111]
[1750171731772,11.21514111,149.98,149.94,11.21514111]
[1750171732673,11.21514111,149.98,149.95,6.66888962]
[1750171733181,26.0,149.99,149.96,11.21514111]
[1750171734554,26.0,149.99,149.97,6.66800026]
[1750171735974,37.21514111,149.99,149.97,6.66800026]
[1750171736354,26.0,149.99,149.97,6.66800026]
[1750171737097,11.49946425,149.98,149.93,17.88492034]
[1750171737267,11.21514111,149.97,149.93,34.55936841]
[1750171738084,11.49946425,149.98,149.93,34.55936841]
[1750171738678,11.49946425,149.98,149.95,6.66888962]
[1750171740874,11.49946425,149.98,149.94,6.6693344]
[1750171742257,0.28432314,149.98,149.94,6.6693344]
[1750171742474,11.21514111,149.97,149.94,6.6693344]
[1750171742980,11.21514111,149.96,149.94,6.6693344]
[1750171743167,5.25262982,149.98,149.94,6.6693344]
[1750171743168,11.21514111,149.97,149.94,6.6693344]
[1750171743474,16.4685457,149.98,149.94,17.88447551]
[1750171743682,11.49946425,149.98,149.94,17.88447551]
[1750171744083,11.21514111,149.97,149.94,6.6693344]
[1750171744274,11.21514111,149.96,149.94,6.6693344]
[1750171744690,11.21514111,149.97,149.94,6.6693344]
[1750171745184,11.21514111,149.97,149.93,17.88492034]
[1750171745762,0.28432314,149.98,149.93,17.88492034]
[1750171745969,21.17188028,149.97,149.93,17.88492034]
[1750171746174,11.21514111,149.97,149.93,17.88492034]
[1750171746565,11.21514111,149.97,149.89,23.35045699]
[1750171746783,11.21514111,149.97,149.92,11.21514111]
[1750171746993,0.28432314,149.98,149.92,11.21514111]
[1750171747156,11.21514111,149.96,149.92,11.21514111]
[1750171747357,11.21514111,149.97,149.93,11.21514111]
[1750171747660,11.21514111,149.97,149.92,11.21514111]
[1750171747858,11.21514111,149.96,149.92,11.21514111]
[1750171748464,11.21514111,149.97,149.93,11.21514111]
[1750171748680,11.21514111,149.97,149.94,6.6693344]
[1750171748983,4.98236838,149.96,149.94,6.6693344]
[1750171749174,11.49946425,149.98,149.94,17.88447551]
[1750171749365,4.9821321,149.97,149.94,6.6693344]
[1750171749568,11.49946425,149.98,149.94,6.6693344]
[1750171749767,11.21514111,149.97,149.94,6.6693344]
[1750171750166,11.21514111,149.96,149.94,6.6693344]
[1750171750589,11.21514111,149.95,149.91,6.67066906]
[1750171750788,0.28432314,149.95,149.9,6.67111407]
[1750171750977,11.21514111,149.91,149.9,6.67111407]
[1750171751374,11.21514111,149.91,149.88,6.67200427]
[1750171751621,11.21514111,149.89,149.86,6.6728947]
[1750171751780,11.49946425,149.9,149.86,6.6728947]
[1750171752102,11.21514111,149.89,149.86,6.6728947]
[1750171753502,11.49946425,149.9,149.86,6.6728947]
[1750171753985,11.21514111,149.89,149.86,6.6728947]
[1750171755421,11.21514111,149.88,149.86,6.6728947]
[1750171756089,11.21514111,149.88,149.82,38.93040195]
[1750171756291,11.21514111,149.88,149.76,28.0]
[1750171756292,0.28432314,149.86,149.79,16.68892478]
[1750171756603,0.28432314,149.86,149.79,11.21514111]
[1750171756604,11.21514111,149.83,149.79,11.21514111]
[1750171756787,18.933972,149.86,149.8,11.21514111]
[1750171756986,11.49946425,149.86,149.82,11.21514111]
[1750171757297,11.21514111,149.85,149.81,11.21514111]
[1750171757879,11.49946425,149.86,149.81,11.21514111]
[1750171758089,11.49946425,149.86,149.82,11.21514111]
[1750171758480,11.49946425,149.86,149.77,56.75368897]
[1750171758701,11.49946425,149.86,149.83,6.67423079]
[1750171759087,11.21514111,149.85,149.83,6.67423079]
[1750171759291,11.49946425,149.86,149.83,6.67423079]
[1750171759908,60.56,149.87,149.83,17.8893719]
[1750171760077,6.32,149.87,149.84,11.21514111]
[1750171760492,6.32,149.87,149.85,11.21514111]
[1750171760805,6.32,149.87,149.86,6.6728947]
[1750171762410,26.0,149.9,149.86,17.88803581]
[1750171762577,37.21514111,149.9,149.86,17.88803581]
[1750171762781,26.0,149.9,149.86,6.6728947]
[1750171762993,37.21514111,149.9,149.86,17.88803581]
[1750171763900,11.49946425,149.89,149.83,23.35980777]
[1750171764101,0.28432314,149.89,149.86,11.21514111]
[1750171764299,11.21514111,149.91,149.87,11.21514111]
[1750171764493,0.28432314,149.9,149.87,11.21514111]
[1750171765818,0.28432314,149.9,149.87,17.88716934]
[1750171769912,0.28432314,149.9,149.87,6.67202823]
[1750171770420,0.28432314,149.9,149.87,17.88716934]
[1750171770917,0.28432314,149.9,149.83,23.35980777]
[1750171771101,0.28432314,149.9,149.87,11.21514111]
[1750171772101,0.28432314,149.9,149.88,6.67200427]
[1750171774223,0.28432314,149.9,149.88,17.88714538]
[1750171774521,18.64964886,149.95,149.89,11.21514111]
[1750171774703,7.9436,149.97,149.93,11.21514111]
[1750171775025,42.60474301,149.97,149.92,6.54114301]
[1750171775231,42.60474301,149.97,149.93,6.54114301]
[1750171775524,0.28432314,149.96,149.93,6.54114301]
[1750171775723,42.60474301,149.97,149.92,6.54114301]
[1750171775917,0.28432314,149.96,149.92,6.54114301]
[1750171776220,0.28432314,149.96,149.93,13.21092224]
[1750171776630,42.60474301,149.97,149.93,13.21092224]
[1750171776930,0.28432314,149.96,149.93,17.8830116]
[1750171777315,6.36,149.97,149.94,11.21323237]
[1750171777517,6.36,149.97,149.95,11.21323237]
[1750171778901,6.36,149.97,149.96,11.21323237]
[1750171779207,9.81732979,150.0,149.97,6.66800026]
[1750171779400,9.81732979,150.0,149.98,11.21323237]
[1750171779903,9.81732979,150.0,149.97,17.88123263]
[1750171780943,9.81732979,150.0,149.98,11.21323237]
[1750171781316,9.81732979,150.0,149.99,6.66711114]
[1750171781837,9.81732979,150.0,149.99,17.88034351]
[1750171782020,6.36,150.02,149.99,17.88034351]
[1750171782334,6.36,150.02,150.01,11.21323237]
[1750171783536,6.36,150.02,150.01,17.87945462]
[1750171785536,0.28432314,150.04,150.01,17.87945462]
[1750171785725,0.28432314,150.01,149.96,27.88334805]
[1750171785925,11.49755551,150.01,149.97,11.21323237]
[1750171786128,0.28432314,150.01,149.98,11.21323237]
[1750171786547,0.28432314,150.01,149.97,6.66800026]
[1750171786735,0.28432314,150.01,149.96,16.67011568]
[1750171787423,28.02,150.02,149.96,16.67011568]
[1750171787618,28.02,150.02,150.0,11.21323237]
[1750171787837,28.02,150.02,149.99,11.21323237]
[1750171788338,39.23323237,150.02,149.98,11.21323237]
[1750171788535,39.23323237,150.02,149.97,11.21323237]
[1750171788536,0.28432314,150.01,149.97,11.21323237]
[1750171788739,11.49755551,150.01,149.97,6.66759145]
[1750171789152,0.28432314,150.01,149.97,17.88082382]
[1750171789350,11.49755551,150.01,149.97,17.88082382]
[1750171789651,11.21323237,149.99,149.97,6.66759145]
[1750171790748,11.21323237,149.99,149.96,6.66844491]
[1750171791264,11.21323237,149.99,149.9,20.38281043]
[1750171791265,29.86288123,149.97,149.91,6.67066906]
[1750171791432,0.28432314,149.96,149.91,6.67066906]
[1750171791622,11.21323237,149.95,149.91,6.67066906]
[1750171791823,26.0,149.98,149.93,11.21323237]
[1750171792032,26.0,149.98,149.91,6.67066906]
[1750171792033,0.28432314,149.97,149.94,11.21323237]
[1750171792255,26.28432314,149.97,149.93,11.21323237]
[1750171792760,37.49755551,149.97,149.93,17.88280273]
[1750171793645,26.28432314,149.97,149.93,17.88280273]
[1750171795441,0.28432314,149.97,149.94,11.21323237]
[1750171795636,28.48,149.98,149.94,11.21323237]
[1750171795841,0.28432314,149.98,149.94,11.21323237]
[1750171796941,6.82417984,149.98,149.94,6.5398567]
[1750171797560,6.82417984,149.98,149.94,13.20884313]
[1750171797750,6.5398567,149.98,149.94,13.20884313]
[1750171799040,0.28432314,149.98,149.94,13.20884313]
[1750171799241,0.28432314,149.98,149.95,6.5398567]
[1750171799957,26.0,149.99,149.95,6.5398567]
[1750171800152,26.0,149.99,149.9,16.67732189]
[1750171800349,26.0,149.99,149.95,6.5398567]
[1750171800556,32.5398567,149.99,149.95,6.5398567]
[1750171801470,0.28432314,149.99,149.96,6.66844491]
[1750171801763,6.82417984,149.99,149.96,6.66844491]
[1750171802866,0.28432314,149.99,149.96,6.66844491]
[1750171803047,6.82417984,149.99,149.96,6.66844491]
[1750171803969,6.36,150.0,149.97,6.5398567]
[1750171805072,0.28432314,149.99,149.96,6.66844491]
[1750171805279,6.82417984,149.99,149.96,6.66844491]
[1750171805463,0.28432314,149.99,149.96,13.20830161]
[1750171806491,6.36,150.0,149.97,6.5398567]
[1750171806803,6.36,150.0,149.98,6.5398567]
[1750171806949,6.36,150.0,149.97,6.5398567]
[1750171807150,6.36,150.0,149.98,6.5398567]
[1750171807681,6.82417984,149.99,149.96,6.66844491]
[1750171808071,0.28432314,149.97,149.9,27.6251]
[1750171808281,0.28432314,149.96,149.92,6.5398567]
[1750171808455,0.28432314,149.96,149.91,6.67066906]
[1750171808656,6.82417984,149.96,149.92,6.5398567]
[1750171809079,0.28432314,149.96,149.93,6.5398567]
[1750171809268,0.28432314,149.96,149.94,6.6693344]
[1750171810463,0.28432314,149.96,149.93,5.5398567]
[1750171810464,6.5398567,149.95,149.92,6.67020102]
[1750171810691,6.82417984,149.96,149.92,6.67020102]
[1750171811421,6.5398567,149.95,149.92,6.67020102]
[1750171811579,6.82417984,149.96,149.92,6.67020102]
[1750171811916,6.82417984,149.96,149.92,13.21005772]
[1750171812911,0.28432314,149.96,149.92,13.21005772]
[1750171813383,6.82417984,149.96,149.92,13.21005772]
[1750171814879,6.82417984,149.96,149.92,6.67020102]
[1750171816505,6.5398567,149.95,149.92,6.67020102]
[1750171817207,6.5398567,149.95,149.91,6.67066906]
[1750171817712,6.5398567,149.95,149.91,13.21052576]
[1750171818377,30.44654249,149.96,149.91,13.21052576]
[1750171818582,6.5398567,149.95,149.91,13.21052576]
[1750171818983,0.28432314,149.94,149.91,6.67066906]
[1750171819601,0.28432314,149.94,149.91,13.21052576]
[1750171820600,0.28432314,149.95,149.92,6.5398567]
[1750171820803,0.28432314,149.96,149.93,6.5398567]
[1750171821317,6.5398567,149.97,149.93,6.5398567]
[1750171821831,4.97621209,149.97,149.94,6.5398567]
[1750171822019,26.0,149.98,149.95,6.5398567]
[1750171822198,6.36,150.0,149.96,6.5398567]
[1750171822396,6.36,150.0,149.97,6.5398567]
[1750171822601,11.33559971,150.0,149.98,6.66755567]
[1750171823115,6.36,150.0,149.98,6.66755567]
[1750171823303,18.9731578,150.03,149.99,6.5398567]
[1750171823509,18.9731578,150.03,150.0,6.5398567]
[1750171824227,18.9731578,150.03,150.02,6.5398567]
[1750171824413,18.9731578,150.03,150.0,6.5398567]
[1750171824612,39.0398567,150.05,150.01,6.5398567]
[1750171825719,39.0398567,150.05,149.98,24.88634485]
[1750171825921,39.0398567,150.05,150.01,6.5398567]
[1750171826335,39.0398567,150.05,149.98,24.88634485]
[1750171826545,39.0398567,150.05,150.01,6.5398567]
[1750171826929,32.5,150.05,150.02,6.5398567]
[1750171827641,18.64964886,150.08,150.04,6.5398567]
[1750171827844,9.94133535,150.07,150.05,6.5398567]
[1750171828048,9.94074451,150.09,150.06,6.5398567]
[1750171828227,6.5,150.1,150.06,6.5398567]
[1750171828426,4.9701564,150.09,150.06,6.5398567]
[1750171828627,4.97014474,150.09,150.06,6.5398567]
[1750171828824,11.47014474,150.1,150.02,0.14216157]
[1750171829029,6.5,150.1,150.03,23.32866758]
[1750171829226,6.5,150.1,150.06,6.5398567]
[1750171829442,6.5,150.1,150.07,6.5398567]
[1750171830159,6.5,150.1,150.03,23.32866758]
[1750171830350,6.5,150.1,150.07,6.5398567]
[1750171830952,6.5,150.1,150.08,6.663113]
[1750171831646,6.5,150.1,150.07,13.20325301]
[1750171832342,6.5,150.1,150.07,6.66339631]
[1750171832540,6.5,150.1,150.07,6.5398567]
[1750171833771,174.4738287,150.09,150.04,6.5398567]
[1750171833952,6.5398567,150.08,150.03,6.5398567]
[1750171834347,149.0,150.07,150.03,6.5398567]
[1750171834566,149.0,150.07,150.04,6.66488936]
[1750171835368,149.0,150.07,150.04,13.20474606]
[1750171836857,149.0,150.07,150.05,6.5398567]
[1750171838145,149.0,150.07,150.05,13.20391082]
[1750171838563,149.0,150.07,150.06,6.5398567]
[1750171838887,149.0,150.07,150.05,13.20391082]
[1750171839189,149.0,150.07,150.05,6.66405412]
[1750171839351,149.0,150.06,150.05,6.66405412]
[1750171843269,149.0,150.06,150.05,13.20391082]
[1750171845857,10.29282997,150.12,150.05,29.86502378]
[1750171845858,149.0,150.09,150.05,29.86502378]
[1750171846157,149.0,150.09,150.08,6.5398567]
[1750171846469,149.0,150.09,150.08,13.0797134]
[1750171846857,149.0,150.14,150.08,13.22187497]
[1750171847082,149.0,150.14,150.13,13.20075059]
[1750171849098,149.0,150.14,150.13,6.66089389]
[1750171849590,149.0,150.14,150.13,13.20075059]
[1750171852089,149.0,150.18,150.13,29.85298531]
[1750171852272,149.0,150.18,150.17,6.5398567]
[1750171852786,149.0,150.18,150.17,13.19897636]
[1750171853088,149.0,150.18,150.17,6.65911966]
[1750171853665,149.0,150.17,150.13,6.66089389]
[1750171853995,155.5398567,150.16,150.13,6.66089389]
[1750171854178,155.5398567,150.16,150.12,13.20106056]
[1750171854377,155.5398567,150.16,150.12,6.66120386]
[1750171854600,6.5398567,150.15,150.12,6.66120386]
[1750171854963,6.5398567,150.13,150.09,6.66266906]
[1750171855168,6.5398567,150.13,150.09,13.20252576]
[1750171855463,25.18950556,150.14,150.1,6.5398567]
[1750171855674,18.64964886,150.14,150.1,6.5398567]
[1750171855885,25.18950556,150.14,150.1,6.5398567]
[1750171856091,25.18950556,150.14,150.09,6.66266906]
[1750171856279,25.18950556,150.14,150.1,6.5398567]
[1750171856480,149.28432314,150.15,150.11,6.5398567]
[1750171856788,155.82417984,150.15,150.11,6.5398567]
[1750171856985,155.82417984,150.15,150.12,6.66133759]
[1750171858204,149.0,150.14,150.12,6.66133759]
[1750171861398,149.0,150.14,150.12,13.20119429]
[1750171862100,149.0,150.14,150.12,6.66133759]
[1750171862493,149.0,150.14,150.12,5.66133759]
[1750171862994,149.0,150.13,150.12,5.66133759]
[1750171863294,149.0,150.13,150.12,12.20119429]
[1750171864301,149.0,150.13,150.06,1.74606157]
[1750171864498,6.5398567,150.11,150.07,6.663557]
[1750171865011,6.5398567,150.11,150.07,13.2034137]
[1750171865012,149.0,150.1,150.07,13.2034137]
[1750171865375,149.0,150.1,150.07,6.663557]
[1750171865575,149.0,150.09,150.08,6.5398567]
[1750171865875,149.0,150.13,150.08,6.5398567]
[1750171866097,149.0,150.12,150.1,6.5398567]
[1750171866699,149.0,150.12,150.07,23.32244951]
[1750171867002,149.0,150.12,150.1,6.5398567]
[1750171867388,149.0,150.12,150.1,13.20171478]
[1750171867989,149.0,150.12,150.1,6.66185808]
[1750171868391,149.0,150.12,150.1,13.20171478]
[1750171871927,149.0,150.11,150.1,13.20171478]
[1750171872085,149.0,150.11,150.1,6.66185808]
[1750171874615,149.0,150.11,150.1,13.20171478]
[1750171875630,149.0,150.17,150.1,29.85727773]
[1750171875802,149.0,150.16,150.1,29.85727773]
[1750171876001,149.0,150.16,150.15,6.5398567]
[1750171876624,149.0,150.16,150.14,6.5398567]
[1750171877797,149.0,150.16,150.15,6.66000666]
[1750171879094,149.0,150.16,150.11,16.65337314]
[1750171879301,155.5398567,150.15,150.12,6.66133759]
[1750171879512,149.0,150.15,150.12,13.20119429]
[1750171879896,149.0,150.15,150.12,6.5398567]
[1750171880398,149.0,150.15,150.13,6.5398567]
[1750171881233,149.0,150.15,150.12,6.5398567]
[1750171881893,149.0,150.15,150.12,6.66094951]
[1750171882305,149.0,150.15,150.12,13.20080621]
[1750171882592,6.5398567,150.14,150.12,6.66094951]
[1750171882797,155.5398567,150.15,150.12,6.66094951]
[1750171883303,149.0,150.15,150.12,6.66094951]
[1750171883505,149.0,150.15,150.12,13.20080621]
[1750171883729,149.0,150.14,150.12,6.66094951]
[1750171885905,149.0,150.14,150.12,13.20080621]
[1750171886826,149.0,150.14,150.13,6.5398567]
[1750171888129,149.0,150.14,150.13,13.20075059]
[1750171890831,149.0,150.14,150.13,6.66089389]
[1750171891131,149.0,150.14,150.13,13.20075059]
[1750171893828,149.0,150.14,150.13,6.66089389]
[1750171894005,149.0,150.14,150.08,1.5222]
[1750171894006,149.0,150.14,150.09,6.66266906]
[1750171894208,149.0,150.14,150.1,6.5398567]
[1750171894409,149.0,150.14,150.11,6.66178136]
[1750171894916,149.0,150.14,150.11,13.20163806]
[1750171895118,155.5398567,150.14,150.11,6.66178136]
[1750171896922,149.0,150.13,150.1,6.5398567]
[1750171897420,155.5398567,150.13,150.09,13.20252576]
[1750171897616,149.0,150.12,150.09,6.66266906]
[1750171897817,149.0,150.11,150.09,6.66266906]
[1750171898019,6.5398567,150.1,150.07,6.663557]
[1750171898820,149.0,150.11,150.08,6.5398567]
[1750171899025,155.5398567,150.11,150.07,6.5398567]
[1750171900043,149.0,150.1,150.07,6.5398567]
[1750171901028,149.0,150.1,150.08,13.2029697]
[1750171901413,149.0,150.1,150.08,6.663113]
[1750171902914,155.5398567,150.1,150.08,6.663113]
[1750171903822,155.5398567,150.1,150.07,6.663557]
[1750171904436,149.0,150.09,150.07,6.663557]
[1750171907546,149.0,150.09,150.07,13.2034137]
[1750171908648,149.0,150.09,150.07,6.663557]
[1750171909030,149.0,150.08,150.04,26.0]
[1750171909230,149.0,150.07,150.05,6.66444518]
[1750171909430,149.0,150.07,150.04,6.66488936]
[1750171909747,149.0,150.07,150.04,13.20474606]
[1750171912236,149.0,150.06,150.04,13.20474606]
[1750171912548,149.0,150.06,150.02,16.6633473]
[1750171912549,149.0,150.06,150.03,6.5398567]
[1750171913135,149.0,150.06,150.04,6.5398567]
[1750171914551,149.0,150.06,150.05,6.66444518]
[1750171916532,167.64964886,150.05,149.95,58.29035501]
[1750171916732,6.5398567,150.0,149.96,6.66844491]
[1750171917080,155.5398567,149.99,149.96,6.66844491]
[1750171917351,155.5398567,149.99,149.96,29.8794139]
[1750171917352,149.0,149.99,149.96,29.8794139]
[1750171917543,6.5398567,149.97,149.95,51.94335501]
[1750171917761,6.5398567,149.96,149.94,6.66928037]
[1750171917962,155.5398567,149.95,149.94,6.66928037]
[1750171918131,149.0,149.95,149.92,6.67022411]
[1750171918331,149.0,149.94,149.91,6.67055833]
[1750171918563,155.5398567,149.94,149.9,6.67101929]
[1750171918733,6.5398567,149.92,149.88,6.67200427]
[1750171918942,6.5398567,149.93,149.88,13.21186097]
[1750171919536,6.5398567,149.92,149.88,13.21186097]
[1750171919760,6.5398567,149.92,149.87,13.21217009]
[1750171919761,6.5398567,149.91,149.87,13.21217009]
[1750171919952,149.0,149.9,149.87,6.67231339]
[1750171920135,155.5398567,149.9,149.87,6.67231339]
[1750171920480,18.64964886,149.93,149.88,6.5398567]
[1750171920763,149.0,149.94,149.9,6.5398567]
[1750171920938,149.0,149.94,149.88,26.0]
[1750171921137,149.0,149.94,149.91,6.5398567]
[1750171921336,155.5398567,149.95,149.9,6.5398567]
[1750171921656,155.5398567,149.95,149.91,6.5398567]
[1750171922437,149.0,149.95,149.92,6.67022411]
[1750171922658,25.4738287,149.94,149.9,6.5398567]
[1750171922862,6.5398567,149.93,149.89,6.67155914]
[1750171923181,6.5398567,149.92,149.88,6.67195345]
[1750171923333,18.933972,149.94,149.88,6.67195345]
[1750171923334,149.0,149.93,149.89,6.5398567]
[1750171923535,149.0,149.93,149.91,6.5398567]
[1750171923760,149.0,149.93,149.92,6.5398567]
[1750171924134,6.64,149.98,149.92,6.5398567]
[1750171924441,13.1798567,149.98,149.9,23.34889926]
[1750171924646,13.1798567,149.98,149.94,6.5398567]
[1750171924843,6.64,149.98,149.94,6.5398567]
[1750171925053,13.1798567,149.98,149.94,6.5398567]
[1750171925737,13.1798567,149.98,149.9,23.34889926]
[1750171925738,18.933972,149.97,149.93,6.5398567]
[1750171926657,18.933972,149.97,149.9,23.34889926]
[1750171926838,18.933972,149.97,149.93,6.5398567]
[1750171927161,6.5398567,149.95,149.91,6.5398567]
[1750171927543,6.5398567,149.96,149.92,6.5398567]
[1750171927748,25.4738287,149.95,149.91,6.5398567]
[1750171928157,0.28432314,149.95,149.91,6.5398567]
[1750171928450,0.28432314,149.95,149.92,6.5398567]
[1750171928758,6.82417984,149.95,149.91,13.21042321]
[1750171928943,6.82417984,149.95,149.91,6.67056651]
[1750171929143,155.5398567,149.94,149.91,6.67056651]
[1750171929956,6.5398567,149.93,149.9,6.67095964]
[1750171930344,155.5398567,149.94,149.9,6.67095964]
[1750171931264,174.4738287,149.93,149.89,13.21128241]
[1750171931466,6.5398567,149.91,149.86,16.68148344]
[1750171931771,149.0,149.9,149.87,6.5398567]
[1750171931946,149.0,149.9,149.87,6.67244945]
[1750171932262,149.0,149.89,149.84,29.89810549]
[1750171932447,149.0,149.89,149.84,23.35824879]
[1750171932653,149.0,149.89,149.86,6.5398567]
[1750171933260,155.5398567,149.89,149.84,16.68446342]
[1750171933567,149.0,149.89,149.85,6.5398567]
[1750171933863,155.5398567,149.89,149.85,6.5398567]
[1750171934066,149.0,149.89,149.84,16.68446342]
[1750171934257,6.5398567,149.87,149.83,6.67423079]
[1750171934445,18.933972,149.88,149.84,6.5398567]
[1750171934641,149.0,149.89,149.85,6.5398567]
[1750171934642,149.0,149.87,149.85,6.5398567]
[1750171934841,28.6,149.91,149.83,23.35980777]
[1750171934842,149.0,149.91,149.86,32.5398567]
[1750171935065,149.0,149.9,149.87,6.5398567]
[1750171935274,149.0,149.9,149.89,13.21141584]
[1750171939371,149.0,149.9,149.89,6.67155914]
[1750171939574,149.0,149.9,149.89,13.21141584]
[1750171939752,149.0,149.9,149.89,6.67155914]
[1750171940274,155.5398567,149.9,149.87,6.67244945]
[1750171940476,155.5398567,149.89,149.87,6.67244945]
[1750171940846,155.5398567,149.88,149.85,6.67334]
[1750171941050,149.0,149.87,149.85,6.67334]
[1750171942372,149.0,149.87,149.86,6.5398567]
[1750171942571,149.0,149.87,149.85,13.2131967]
[1750171942873,149.0,149.87,149.85,17.89924748]
[1750171943768,149.0,149.87,149.85,6.67334]
[1750171944449,149.0,149.87,149.86,11.22590748]
[1750171945751,149.0,149.87,149.86,17.89880218]
[1750171946682,11.34562612,149.93,149.89,26.0]
[1750171946683,149.0,149.92,149.89,26.0]
[1750171946862,149.0,149.92,149.89,37.22590748]
[1750171947856,149.0,149.92,149.91,26.0]
[1750171948966,30.15987948,149.92,149.88,32.67187615]
[1750171949170,11.51023062,149.91,149.88,32.67187615]
[1750171949470,30.15987948,149.91,149.88,26.0]
[1750171949776,18.933972,149.91,149.84,6.67378537]
[1750171949975,149.0,149.9,149.87,26.0]
[1750171950181,149.0,149.89,149.88,11.22590748]
[1750171950484,149.0,149.89,149.87,11.22590748]
[1750171950870,149.28432314,149.88,149.86,37.22590748]
[1750171951057,149.28432314,149.88,149.86,11.22590748]
[1750171951681,149.28432314,149.88,149.87,11.22590748]
[1750171952757,149.28432314,149.88,149.85,11.22590748]
[1750171952957,149.28432314,149.88,149.86,11.22590748]
[1750171953159,177.80432314,149.88,149.86,11.22590748]
[1750171953373,177.80432314,149.88,149.85,11.22590748]
[1750171953902,177.80432314,149.88,149.86,11.22590748]
[1750171954198,177.80432314,149.88,149.83,26.0]
[1750171954363,149.0,149.87,149.84,11.22590748]
[1750171955355,149.0,149.87,149.86,11.22590748]
[1750171955660,0.28432314,149.88,149.86,11.22590748]
[1750171955883,0.28432314,149.88,149.87,11.22590748]
[1750171956292,0.28432314,149.88,149.86,11.22590748]
[1750171957130,18.933972,149.89,149.86,11.22590748]
[1750171957304,47.413972,149.89,149.86,11.22590748]
[1750171957620,28.76432314,149.89,149.87,11.22590748]
[1750171958190,28.76432314,149.89,149.86,11.22590748]
[1750171959216,28.76432314,149.89,149.85,6.67303612]
[1750171959416,28.76432314,149.89,149.86,11.22590748]
[1750171960520,0.28432314,149.87,149.85,17.89921582]
[1750171960729,149.0,149.86,149.85,17.89921582]
[1750171962919,149.0,149.86,149.85,13.2210825]
[1750171964128,149.0,149.86,149.82,42.68559985]
[1750171964129,149.0,149.86,149.83,23.35980777]
[1750171964300,18.933972,149.89,149.85,6.54777416]
[1750171964622,18.933972,149.89,149.86,6.54777416]
[1750171965002,18.933972,149.89,149.83,23.35980777]
[1750171965228,0.28432314,149.89,149.88,6.54777416]
[1750171965724,0.28432314,149.89,149.87,6.54777416]
[1750171966299,23.90181596,149.89,149.86,6.54777416]
[1750171966505,28.38,149.88,149.83,16.68557698]
[1750171966702,28.38,149.88,149.85,6.54777416]
[1750171966902,28.38,149.88,149.86,6.54777416]
[1750171967125,47.313972,149.89,149.87,6.54777416]
[1750171969410,35.88401081,149.9,149.88,6.54777416]
[1750171969411,64.26401081,149.9,149.88,6.54777416]
[1750171970524,38.26401081,149.9,149.88,6.54777416]
[1750171970822,0.28432314,149.89,149.8,23.50664754]
[1750171971010,149.0,149.87,149.86,6.54777416]
[1750171971333,0.28432314,149.89,149.86,6.54777416]
[1750171971530,0.28432314,149.89,149.87,6.54777416]
[1750171972009,28.64432314,149.89,149.87,6.54777416]
[1750171973102,28.64432314,149.89,149.86,6.67259645]
[1750171973299,28.64432314,149.89,149.87,6.54777416]
[1750171973730,28.64432314,149.89,149.86,6.67259645]
[1750171973917,28.64432314,149.89,149.87,6.54777416]
[1750171974812,28.64432314,149.89,149.86,6.54777416]
[1750171975023,28.64432314,149.89,149.87,6.54777416]
[1750171975508,149.0,149.88,149.87,6.54777416]
[1750171976418,149.0,149.88,149.87,13.22022361]
[1750171979534,149.0,149.88,149.87,19.76799777]
[1750171982119,149.0,149.88,149.87,13.22022361]
[1750171982732,149.0,149.88,149.87,6.54777416]
[1750171982932,149.0,149.87,149.86,6.54777416]
[1750171983133,0.28432314,149.88,149.85,6.54777416]
[1750171983512,0.28432314,149.88,149.86,6.54777416]
[1750171983720,0.28432314,149.88,149.85,6.54777416]
[1750171983927,0.28432314,149.88,149.86,6.54777416]
[1750171985534,28.26,149.89,149.87,6.54777416]
[1750171985744,70.70401081,149.9,149.88,6.54777416]
[1750171985919,174.48174616,149.89,149.85,6.54777416]
[1750171986118,177.22,149.88,149.8,6.68993573]
[1750171986320,149.0,149.87,149.85,6.54777416]
[1750171986521,149.0,149.86,149.85,6.54777416]